fUSD/lending_fUSD_20240720
["ID","MTS","AMOUNT","RATE_DAILY","PERIOD"]
[332709469,1721473451292,-6124.15,0.000345,31]
[332709470,1721473451316,-6124.15,0.000345,31]
[332709471,1721473451341,-6124.15,0.000345,31]
[332709472,1721473451364,-6124.15,0.000345,31]
[332709473,1721473451389,-6124.15,0.000345,31]
[332709474,1721473451413,-6124.15,0.000345,31]
[332709475,1721473451438,-6124.15,0.000345,31]
[332709476,1721473451462,-6124.15,0.000345,31]
[332709477,1721473451487,-6124.15,0.000345,31]
[332709478,1721473451510,-6124.15,0.000345,31]
[332709479,1721473451752,-6124.15,0.000345,31]
[332709480,1721473451780,-6124.15,0.000345,31]
[332709481,1721473451805,-6124.15,0.000345,31]
[332709482,1721473451830,-2000.0,0.000345,120]
[332709483,1721473451854,-203.0,0.0003452,30]
[332709484,1721473451879,-833.33,0.0003452,30]
[332709485,1721473451903,-215.0,0.0003452,30]
[332709486,1721473451929,-207.0,0.0003452,30]
[332709487,1721473452003,-20047.0790797,0.00034648,31]
[332709488,1721473452028,-5172.60218869,0.00034793,50]
[332709489,1721473452103,-2000.0,0.000348,120]
[332709490,1721473452128,-935777.99999999,0.000348,30]
[332709491,1721473452152,-1000000.0,0.000348,30]
[332709492,1721473452176,-1817.156427,0.000348,30]
[332709493,1721473452203,-6124.15,0.000348,31]
[332709494,1721473452228,-6124.15,0.000348,31]
[332709495,1721473452255,-6124.15,0.000348,31]
[332709496,1721473452280,-6124.15,0.000348,31]
[332709497,1721473452306,-6124.15,0.000348,31]
[332709498,1721473452334,-6124.15,0.000348,31]
[332709499,1721473452359,-6124.15,0.000348,31]
[332709500,1721473452384,-6124.15,0.000348,31]
[332709501,1721473452410,-6124.15,0.000348,31]
[332709502,1721473452435,-6124.15,0.000348,31]
[332709503,1721473452461,-6124.15,0.000348,31]
[332709504,1721473452486,-6124.15,0.000348,31]
[332709505,1721473452511,-6124.15,0.000348,31]
[332709506,1721473452536,-6124.15,0.000348,31]
[332709507,1721473452565,-6124.15,0.000348,31]
[332709508,1721473452591,-6124.15,0.000348,31]
[332709509,1721473452617,-6124.15,0.000348,31]
[332709510,1721473452645,-6124.15,0.000348,31]
[332709511,1721473452670,-6124.15,0.000348,31]
[332709512,1721473452696,-6124.15,0.000348,31]
[332709513,1721473452720,-150.0,0.00034863,120]
[332709514,1721473452746,-6083.20122077,0.00035,30]
[332709515,1721473452770,-104113.94933965,0.00035,90]
[332709516,1721473452794,-150.0,0.00035,120]
[332709517,1721473452818,-1500.0,0.00035,30]
[332709518,1721473452842,-500.82,0.00035,30]
[332709519,1721473452867,-2422.875236,0.00035,30]
[332709520,1721473452934,-833.33,0.00035342,30]
[332709521,1721473453001,-150.0,0.00035371,120]
[332709522,1721473453026,-3028.594045,0.000355,30]
[332709523,1721473453050,-10000.0,0.000356,30]
[332709524,1721473453074,-3634.312854,0.000356,30]
[332709525,1721473453099,-8000.0,0.000356,30]
[332709526,1721473453166,-3634.312854,0.000357,30]
[332709527,1721473453191,-4240.031663,0.000358,30]
[332709528,1721473453214,-3634.312854,0.0003582,30]
[332709529,1721473453275,-300.0,0.00036,120]
[332709530,1721473453298,-150.0,0.00036,120]
[332709531,1721473453322,-551.16563166,0.00036,120]
[332709532,1721473453345,-1150.0,0.00036,120]
[332709533,1721473453369,-471.52499514,0.00036,60]
[332709534,1721473453394,-150.0,0.00036015,120]
[332709535,1721473453419,-833.33,0.00036164,30]
[332709536,1721473453479,-150.0,0.00036373,120]
[332709537,1721473453569,-1000000.0,0.000368,30]
[332709538,1721473453593,-30750.75215144,0.000368,60]
[332709539,1721473453617,-500.0,0.000369,120]
[332709540,1721473453667,-150.0,0.00036959,120]
[332709541,1721473453690,-833.33,0.00036986,30]
[332709542,1721473453744,-150.0,0.00037,120]
[332709543,1721473453771,-150.0,0.00037048,120]
[332709544,1721473453825,-150.0,0.00037302,120]
[332709545,1721473453849,-150.0,0.000375,120]
[332709546,1721473453900,-2059.0603646,0.000378,70]
[332709547,1721473453925,-1337670.214835,0.000378,30]
[332709548,1721473453948,-833.33,0.00037808,30]
[332709549,1721473454000,-2970.41,0.00038,30]
[332709550,1721473454024,-300.0,0.00038,120]
[332709551,1721473454048,-150.0,0.00038,120]
[332709552,1721473454071,-2000.0,0.00038,30]
[332709553,1721473454095,-758.25104169,0.00038,120]
[332709554,1721473454119,-1039.6942342,0.00038,120]
[332709555,1721473454169,-150.0,0.00038209,120]
[332709556,1721473454193,-200000.0,0.0003834,30]
[332709557,1721473454244,-141890.07085874,0.0003844,30]
[332709558,1721473460734,-214870.92914126,0.0003844,30]
[332709559,1721473460761,-833.33,0.0003863,30]
[332709560,1721473460811,-639.47052549,0.000387,120]
[332709561,1721473460839,-29434.56969554,0.000388,60]
[332709562,1721473460863,-51865.15873316,0.0003888,90]
[332709563,1721473460886,-2720.05837065,0.000389,30]
[332709564,1721473460933,-200.0,0.00038984,31]
[332709565,1721473460957,-500.0,0.00039,120]
[332709566,1721473460980,-2619.96784837,0.00039,30]
[332709567,1721473461002,-2915.39236127,0.00039,120]
[332709568,1721473461025,-1134.0,0.00039,120]
[332709569,1721473461049,-500.0,0.00039,90]
[332709570,1721473461073,-150.0,0.00039,120]
[332709571,1721473461118,-569.4021745,0.000394,30]
[332709572,1721473461141,-206322.0,0.0003944,30]
[332709573,1721473461165,-833.33,0.00039452,30]
[332709574,1721473461189,-500.0,0.000395,90]
[332709575,1721473461215,-636.21421803,0.000395,33]
[332709576,1721473461238,-28638.28638,0.000398,60]
[332709577,1721473461264,-216.87865522,0.0003985,30]
[332709578,1721473461289,-500.0,0.000399,120]
[332709579,1721473461312,-500.0,0.000399,120]
[332709580,1721473461338,-500.0,0.000399,120]
[332709581,1721473461361,-500.0,0.000399,120]
[332709582,1721473461384,-233.48685793,0.000399,120]
[332709583,1721473461407,-408.67517407,0.00039986,120]
[332709584,1721473461430,-250.0,0.00039999,30]
[332709585,1721473461455,-50000.0,0.0004,30]
[332709586,1721473461770,-151.0,0.0004,120]
[332709587,1721473461794,-1051.55510494,0.0004,120]
[332709588,1721473461817,-151.0,0.0004,120]
[332709589,1721473461841,-477.12749073,0.0004,30]
[332709590,1721473461864,-2382.59452695,0.0004,120]
[332709591,1721473461887,-2926.65050029,0.0004,30]
[332709592,1721473461911,-45600.43316773,0.0004,30]
[332709593,1721473461935,-1483.33669928,0.0004,30]
[332709594,1721473461958,-492.84648983,0.0004,30]
[332709595,1721473461981,-3112.90228931,0.0004,30]
[332709596,1721473462004,-2337.37270409,0.0004,120]
[332709597,1721473462028,-701.23561442,0.0004,30]
[332709598,1721473462054,-408.00985205,0.0004,30]
[332709599,1721473462078,-316.30975122,0.0004,30]
[332709600,1721473462102,-2171.33703543,0.0004,120]
[332709601,1721473462127,-2000.0,0.0004,120]
[332709602,1721473462150,-220.23327574,0.0004,120]
[332709603,1721473462173,-150.0,0.0004,120]
[332709604,1721473462196,-1243.3642395,0.0004,50]
[332709605,1721473462219,-734.53902753,0.0004,120]
[332709606,1721473462242,-571.10518577,0.0004,120]
[332709607,1721473462267,-413.0,0.0004,120]
[332709608,1721473462291,-4693.41559383,0.0004,120]
[332709609,1721473462315,-765942.76517937,0.0004,30]
[332709610,1721473462338,-2272350.4084923,0.0004,30]
[332709611,1721473462361,-500.0,0.0004,120]
[332709612,1721473462385,-10000.0,0.0004,30]
[332709613,1721473462409,-2675.88783313,0.0004,120]
[332709614,1721473462432,-2138.08720014,0.0004,120]
[332709615,1721473462456,-8011.16601567,0.0004,30]
[332709616,1721473462479,-500.0,0.0004,120]
[332709617,1721473462502,-158.36215723,0.0004,30]
[332709618,1721473462526,-361.91645698,0.0004,30]
[332709619,1721473462549,-398.0,0.0004,60]
[332709620,1721473462577,-1000.0,0.0004,30]
[332709621,1721473462600,-1226.79,0.0004,120]
[332709622,1721473462626,-5000.0,0.0004,30]
[332709623,1721473462653,-8250.94607353,0.0004,120]
[332709624,1721473462678,-150.0,0.0004,120]
[332709625,1721473462701,-1641.13,0.0004,30]
[332709626,1721473462724,-9969.0,0.0004,30]
[332709627,1721473462748,-3043.13194445,0.0004,120]
[332709628,1721473462772,-420.0,0.0004,120]
[332709629,1721473462795,-1039.6942342,0.0004,120]
[332709630,1721473462817,-343.0,0.0004,60]
[332709631,1721473462840,-199.51914885,0.0004,30]
[332709632,1721473462864,-131197.90436554,0.0004,120]
[332709633,1721473462887,-991.3872563,0.0004,60]
[332709634,1721473462910,-3006.88518715,0.0004,120]
[332709635,1721473462933,-4000.0,0.0004,30]
[332709636,1721473462956,-359.49,0.0004,120]
[332709637,1721473462980,-12500.0,0.0004,120]
[332709638,1721473463003,-12500.0,0.0004,120]
[332709639,1721473463026,-12500.0,0.0004,120]
[332709640,1721473463051,-12500.0,0.0004,120]
[332709641,1721473463076,-12500.0,0.0004,120]
[332709642,1721473463100,-12500.0,0.0004,120]
[332709643,1721473463123,-12500.0,0.0004,120]
[332709644,1721473463146,-356.26,0.0004,120]
[332709645,1721473463169,-539.94,0.0004,120]
[332709646,1721473463192,-12500.0,0.0004,120]
[332709647,1721473463216,-12500.0,0.0004,120]
[332709648,1721473463240,-352.1,0.0004,120]
[332709649,1721473463263,-162.399982,0.0004,60]
[332709650,1721473463288,-492.4,0.0004,120]
[332709651,1721473463312,-12500.0,0.00040188,120]
[332709652,1721473463334,-12500.0,0.00040188,120]
[332709653,1721473463358,-12500.0,0.00040188,120]
[332709654,1721473463381,-12500.0,0.00040188,120]
[332709655,1721473463405,-12500.0,0.00040188,120]
[332709656,1721473463430,-12500.0,0.00040188,120]
[332709657,1721473463454,-12500.0,0.00040188,120]
[332709658,1721473463479,-12500.0,0.00040188,120]
[332709659,1721473463506,-500.82639056,0.0004025,120]
[332709660,1721473463531,-833.33,0.00040273,30]
[332709661,1721473463559,-12500.0,0.00040375,120]
[332709662,1721473463583,-12500.0,0.00040375,120]
[332709663,1721473463607,-12500.0,0.00040375,120]
[332709664,1721473463632,-12500.0,0.00040375,120]
[332709665,1721473463667,-12500.0,0.00040375,120]
[332709666,1721473463694,-12500.0,0.00040375,120]
[332709667,1721473463721,-12500.0,0.00040375,120]
[332709668,1721473463749,-12500.0,0.00040375,120]
[332709669,1721473463776,-500.0,0.000405,120]
[332709670,1721473463801,-2593.46,0.00040563,120]
[332709671,1721473463827,-12500.0,0.00040563,120]
[332709672,1721473463853,-6898.23,0.00040563,120]
[332709673,1721473463880,-12500.0,0.00040563,120]
[332709674,1721473463906,-12500.0,0.00040563,120]
[332709675,1721473463931,-12500.0,0.00040563,120]
[332709676,1721473463957,-12500.0,0.00040563,120]
[332709677,1721473463984,-12500.0,0.00040563,120]
[332709678,1721473464012,-151.0,0.00040658,120]
[332709679,1721473464038,-12500.0,0.0004075,120]
[332709680,1721473464064,-12500.0,0.0004075,120]
[332709681,1721473464089,-12500.0,0.0004075,120]
[332709682,1721473464114,-12500.0,0.0004075,120]
[332709683,1721473464140,-12500.0,0.0004075,120]
[332709684,1721473464165,-12500.0,0.0004075,120]
[332709685,1721473464191,-12500.0,0.00040938,120]
[332709686,1721473464216,-12500.0,0.00040938,120]
[332709687,1721473464241,-12500.0,0.00040938,120]
[332709688,1721473464267,-12500.0,0.00040938,120]
[332709689,1721473464293,-12500.0,0.00040938,120]
[332709690,1721473464319,-12500.0,0.00040938,120]
[332709691,1721473464584,-50000.0,0.00041,31]
[332709692,1721473464610,-153.49808552,0.00041,120]
[332709693,1721473464635,-1000.0,0.00041,120]
[332709694,1721473464659,-500.0,0.00041,120]
[332709695,1721473464683,-111387.41241737,0.00041,120]
[332709696,1721473464707,-150.0,0.00041,120]
[332709697,1721473464730,-696.04538032,0.00041,60]
[332709698,1721473464753,-20050.47976618,0.00041,30]
[332709699,1721473464777,-740.58,0.00041,120]
[332709700,1721473464804,-152.0,0.00041041,31]
[332709701,1721473464827,-303.03351812,0.00041044,120]
[332709702,1721473464850,-865.15039765,0.00041078,120]
[332709703,1721473464873,-2048.22,0.00041095,120]
[332709704,1721473464898,-2048.22,0.00041095,120]
[332709705,1721473464922,-2048.22,0.00041095,120]
[332709706,1721473464947,-2048.22,0.00041095,120]
[332709707,1721473464970,-2048.22,0.00041095,120]
[332709708,1721473464994,-2048.22,0.00041095,120]
[332709709,1721473465017,-2048.22,0.00041095,120]
[332709710,1721473465042,-2048.22,0.00041095,120]
[332709711,1721473465065,-2048.22,0.00041095,120]
[332709712,1721473465088,-2048.22,0.00041095,120]
[332709713,1721473465112,-2048.22,0.00041095,120]
[332709714,1721473465136,-2048.22,0.00041095,120]
[332709715,1721473465160,-2048.22,0.00041095,120]
[332709716,1721473465184,-2048.22,0.00041095,120]
[332709717,1721473465208,-2048.22,0.00041095,120]
[332709718,1721473465232,-2048.22,0.00041095,120]
[332709719,1721473465255,-2048.22,0.00041095,120]
[332709720,1721473465280,-2048.22,0.00041095,120]
[332709721,1721473465304,-2048.22,0.00041095,120]
[332709722,1721473465328,-2048.22,0.00041095,120]
[332709723,1721473465353,-2048.22,0.00041095,120]
[332709724,1721473465377,-2048.22,0.00041095,120]
[332709725,1721473465401,-2048.22,0.00041095,120]
[332709726,1721473465425,-2048.33720735,0.00041095,120]
[332709727,1721473465450,-2099.34895284,0.00041095,30]
[332709728,1721473465474,-153.21026272,0.00041095,120]
[332709729,1721473465499,-833.33,0.00041095,30]
[332709730,1721473465523,-515.20028479,0.00041095,30]
[332709731,1721473465547,-654.0,0.00041096,120]
[332709732,1721473465578,-300.0,0.00041096,120]
[332709733,1721473465603,-10000.0,0.000411,30]
[332709734,1721473465627,-8000.0,0.000411,120]
[332709735,1721473465651,-152.17,0.00041123,30]
[332709736,1721473465674,-12500.0,0.00041125,120]
[332709737,1721473465698,-12500.0,0.00041125,120]
[332709738,1721473465722,-12500.0,0.00041125,120]
[332709739,1721473465746,-2919.95,0.00041125,120]
[332709740,1721473465769,-11948.07,0.00041125,120]
[332709741,1721473465792,-12500.0,0.00041125,120]
[332709742,1721473465816,-1335.43399234,0.0004118,120]
[332709743,1721473465840,-12500.0,0.00041313,120]
[332709744,1721473465863,-6116.83,0.00041313,120]
[332709745,1721473465887,-151.0,0.00041315,120]
[332709746,1721473465910,-151.0,0.00041342,120]
[332709747,1721473465934,-500.0,0.000415,120]
[332709748,1721473465958,-12500.0,0.000415,120]
[332709749,1721473465981,-12500.0,0.00041688,120]
[332709750,1721473466005,-12500.0,0.00041875,120]
[332709751,1721473466028,-833.33,0.00041917,30]
[332709752,1721473466051,-151.0,0.00041973,120]
[332709753,1721473466078,-50000.0,0.00042,32]
[332709754,1721473466102,-1050.0,0.00042,120]
[332709755,1721473466126,-679.42169112,0.00042,120]
[332709756,1721473466150,-1105.65821323,0.00042,120]
[332709757,1721473466175,-532.812063,0.00042,120]
[332709758,1721473466202,-2000.0,0.00042,120]
[332709759,1721473466226,-151.0,0.00042,30]
[332709760,1721473466251,-151.0,0.00042,30]
[332709761,1721473466276,-151.0,0.00042,30]
[332709762,1721473466300,-151.0,0.00042,30]
[332709763,1721473466324,-151.0,0.00042,30]
[332709764,1721473466349,-151.0,0.00042,30]
[332709765,1721473466373,-199.0,0.00042,30]
[332709766,1721473466398,-500.0,0.00042,120]
[332709767,1721473466422,-560.0,0.00042,120]
[332709768,1721473466446,-150.0,0.00042,120]
[332709769,1721473466470,-29303.0,0.00042,120]
[332709770,1721473466494,-1210.73936116,0.00042,120]
[332709771,1721473466519,-12500.0,0.00042063,120]
[332709772,1721473466543,-12500.0,0.0004225,120]
[332709773,1721473466572,-12500.0,0.00042438,120]
[332709774,1721473466597,-500.0,0.000425,120]
[332709775,1721473466622,-150.0,0.000425,120]
[332709776,1721473466649,-654.0,0.00042501,120]
[332709777,1721473466673,-533.5959599,0.00042501,120]
[332709778,1721473466696,-995.944,0.000426,120]
[332709779,1721473466719,-12500.0,0.00042625,120]
[332709780,1721473466743,-151.0,0.0004263,120]
[332709781,1721473466766,-151.0,0.00042685,120]
[332709782,1721473466792,-833.33,0.00042739,30]
[332709783,1721473466817,-268490.49861746,0.000428,30]
[332709784,1721473466842,-12500.0,0.00042813,120]
[332709785,1721473466867,-152.0,0.00042886,31]
[332709786,1721473466892,-2479.25446989,0.000429,120]
[332709787,1721473466916,-400000.0,0.000429,30]
[332709788,1721473466940,-1257.93555495,0.000429,120]
[332709789,1721473466966,-50000.0,0.00043,33]
[332709790,1721473466991,-2045.25243629,0.00043,30]
[332709791,1721473467016,-600.0,0.00043,120]
[332709792,1721473467043,-217.65694665,0.00043,120]
[332709793,1721473467067,-500.0,0.00043,120]
[332709794,1721473467092,-522.24949395,0.00043,30]
[332709795,1721473467315,-2277.77000851,0.00043,120]
[332709796,1721473467340,-150.0,0.00043,120]
[332709797,1721473467364,-955.68007002,0.00043,30]
[332709798,1721473467388,-600.0,0.00043,120]
[332709799,1721473467413,-4195.50152876,0.00043,60]
[332709800,1721473467438,-2079.3884684,0.00043,120]
[332709801,1721473467462,-54540.0,0.00043,120]
[332709802,1721473467487,-526.0,0.00043,120]
[332709803,1721473467511,-566.68102023,0.00043,30]
[332709804,1721473467538,-12500.0,0.00043,120]
[332709805,1721473467564,-2414.85083,0.00043088,30]
[332709806,1721473467588,-143484.01047504,0.0004318,30]
[332709807,1721473467613,-629.34722371,0.0004318,30]
[332709808,1721473467638,-12500.0,0.00043188,120]
[332709809,1721473467664,-151.0,0.00043288,120]
[332709810,1721473467688,-2414.85083,0.00043288,30]
[332709811,1721473467712,-12500.0,0.00043375,120]
[332709812,1721473467736,-2414.85083,0.00043488,30]
[332709813,1721473467762,-5017.0,0.000435,120]
[332709814,1721473467788,-500.0,0.000435,120]
[332709815,1721473467814,-833.33,0.00043561,30]
[332709816,1721473467840,-12500.0,0.00043563,120]
[332709817,1721473467864,-171208.36544463,0.000436,120]
[332709818,1721473467889,-2414.85083,0.00043688,30]
[332709819,1721473467914,-670.07429818,0.000437,60]
[332709820,1721473467939,-3204.0,0.000437,98]
[332709821,1721473467964,-5352.92978742,0.000437,60]
[332709822,1721473467990,-465.41007956,0.000438,30]
[332709823,1721473468014,-716.58103562,0.000438,111]
[332709824,1721473468040,-833.33,0.00043835,120]
[332709825,1721473468068,-833.33,0.00043835,120]
[332709826,1721473468093,-833.33,0.00043835,120]
[332709827,1721473468117,-833.33,0.00043835,120]
[332709828,1721473468141,-833.33,0.00043835,120]
[332709829,1721473468165,-833.33,0.00043835,120]
[332709830,1721473468189,-833.33,0.00043835,120]
[332709831,1721473468214,-833.33,0.00043835,120]
[332709832,1721473468239,-833.33,0.00043835,120]
[332709833,1721473468264,-833.33,0.00043835,120]
[332709834,1721473468293,-833.33,0.00043835,120]
[332709835,1721473468317,-833.33,0.00043835,120]
[332709836,1721473468341,-833.33,0.00043835,120]
[332709837,1721473468365,-833.33,0.00043835,120]
[332709838,1721473468389,-833.33,0.00043835,120]
[332709839,1721473468413,-833.33,0.00043835,120]
[332709840,1721473468438,-833.33,0.00043835,120]
[332709841,1721473468462,-833.33,0.00043835,120]
[332709842,1721473468486,-833.33,0.00043835,120]
[332709843,1721473468510,-833.33,0.00043835,120]
[332709844,1721473468534,-833.33,0.00043835,120]
[332709845,1721473468561,-833.33,0.00043835,120]
[332709846,1721473468584,-833.33,0.00043835,120]
[332709847,1721473468609,-833.41,0.00043835,120]
[332709848,1721473468634,-1250.0,0.00043835,120]
[332709849,1721473468657,-156.8886,0.00043888,30]
[332709850,1721473468681,-10000.0,0.000439,120]
[332709851,1721473468705,-300000.0,0.000439,30]
[332709852,1721473468730,-654.0,0.00043906,120]
[332709853,1721473468755,-151.0,0.00043945,120]
[332709854,1721473468782,-50000.0,0.00044,34]
[332709855,1721473468805,-612.45055444,0.00044,30]
[332709856,1721473468829,-2000.0,0.00044,120]
[332709857,1721473468853,-272.0635996,0.00044,120]
[332709858,1721473468877,-500.0,0.00044,120]
[332709859,1721473468901,-680.0,0.00044,120]
[332709860,1721473468926,-500000.0,0.00044,120]
[332709861,1721473468950,-500000.0,0.00044,120]
[332709862,1721473468974,-500000.0,0.00044,120]
[332709863,1721473468999,-500.0,0.00044,120]
[332709864,1721473469023,-500.0,0.00044,120]
[332709865,1721473469047,-500.0,0.00044,120]
[332709866,1721473469072,-500.0,0.00044,120]
[332709867,1721473469097,-500.0,0.00044,120]
[332709868,1721473469122,-500.0,0.00044,120]
[332709869,1721473469146,-500.0,0.00044,120]
[332709870,1721473469170,-500.0,0.00044,120]
[332709871,1721473469195,-500.0,0.00044,120]
[332709872,1721473469219,-500.0,0.00044,120]
[332709873,1721473469244,-500.0,0.00044,120]
[332709874,1721473469267,-500.0,0.00044,120]
[332709875,1721473469291,-500.0,0.00044,120]
[332709876,1721473469314,-500.0,0.00044,120]
[332709877,1721473469340,-500.0,0.00044,120]
[332709878,1721473469365,-500.0,0.00044,120]
[332709879,1721473469389,-500.0,0.00044,120]
[332709880,1721473469415,-500.0,0.00044,120]
[332709881,1721473469440,-500.0,0.00044,120]
[332709882,1721473469465,-500.0,0.00044,120]
[332709883,1721473469491,-500.0,0.00044,120]
[332709884,1721473469517,-500.0,0.00044,120]
[332709885,1721473469543,-500.0,0.00044,120]
[332709886,1721473469575,-500.0,0.00044,120]
[332709887,1721473469600,-500.0,0.00044,120]
[332709888,1721473469626,-500.0,0.00044,120]
[332709889,1721473469654,-500.0,0.00044,120]
[332709890,1721473469680,-500.0,0.00044,120]
[332709891,1721473469706,-500.0,0.00044,120]
[332709892,1721473469731,-500.0,0.00044,120]
[332709893,1721473469757,-500.0,0.00044,120]
[332709894,1721473469784,-500.0,0.00044,120]
[332709895,1721473469809,-500.0,0.00044,120]
[332709896,1721473469834,-500.0,0.00044,120]
[332709897,1721473469858,-500.0,0.00044,120]
[332709898,1721473469882,-500.0,0.00044,120]
[332709899,1721473470101,-500.0,0.00044,120]
[332709900,1721473470126,-500.0,0.00044,120]
[332709901,1721473470150,-500.0,0.00044,120]
[332709902,1721473470174,-500.0,0.00044,120]
[332709903,1721473470198,-500.0,0.00044,120]
[332709904,1721473470223,-500.0,0.00044,120]
[332709905,1721473470248,-500.0,0.00044,120]
[332709906,1721473470272,-500.0,0.00044,120]
[332709907,1721473470297,-500.0,0.00044,120]
[332709908,1721473470321,-500.0,0.00044,120]
[332709909,1721473470345,-500.0,0.00044,120]
[332709910,1721473470369,-500.0,0.00044,120]
[332709911,1721473470393,-500.0,0.00044,120]
[332709912,1721473470418,-500.0,0.00044,120]
[332709913,1721473470443,-500.0,0.00044,120]
[332709914,1721473470467,-500.0,0.00044,120]
[332709915,1721473470491,-500.0,0.00044,120]
[332709916,1721473470515,-500.0,0.00044,120]
[332709917,1721473470538,-500.0,0.00044,120]
[332709918,1721473470565,-500.0,0.00044,120]
[332709919,1721473470589,-500.0,0.00044,120]
[332709920,1721473470614,-500.0,0.00044,120]
[332709921,1721473470637,-597.0,0.00044,120]
[332709922,1721473470661,-500.0,0.00044,120]
[332709923,1721473470685,-904408.36881155,0.00044,90]
[332709924,1721473483298,-156.0,0.000407,30]
[332709925,1721473483322,-368.37,0.00041095,120]
[332709926,1721473483346,-156.0,0.000412,30]
[332709927,1721473483370,-156.0,0.000417,31]
[332709928,1721473483396,-156.0,0.000422,32]
[332709929,1721473483421,-156.0,0.000427,32]
[332709930,1721473483446,-156.0,0.000432,33]
[332709931,1721473483470,-171.0,0.000437,33]
[332709932,1721473483495,-95591.63118845,0.00044,90]
[332709933,1721473483519,-500.0,0.00044,120]
[332709934,1721473483542,-622.0,0.00044,120]
[332709935,1721473483568,-500.0,0.00044,120]
[332709936,1721473483591,-602.0,0.00044,120]
[332709937,1721473483615,-500.0,0.00044,120]
[332709938,1721473483646,-500.0,0.00044,120]
[332709939,1721473483670,-500.0,0.00044,120]
[332709940,1721473483695,-847.0,0.00044,120]
[332709941,1721473483720,-10000.0,0.00044,120]
[332709942,1721473483745,-150.0,0.00044,120]
[332709943,1721473483772,-272.6324981,0.00044,30]
[332709944,1721473483797,-3831.0,0.00044,60]
[332709945,1721473483821,-1000.0,0.00044,120]
[332709946,1721473483846,-637.851568,0.00044,57]
[332709947,1721473483871,-151.0,0.00044027,120]
[332709948,1721473483896,-2414.85083,0.00044088,30]
[332709949,1721473483922,-24455.85502805,0.000441,60]
[332709950,1721473483950,-1059.71659039,0.000441,60]
[332709951,1721473483975,-1973.14202457,0.000442,120]
[332709952,1721473484000,-1973.14202457,0.000442,120]
[332709953,1721473484026,-1973.14202457,0.000442,120]
[332709954,1721473484053,-1973.14202457,0.000442,120]
[332709955,1721473484080,-1973.14202457,0.000442,120]
[332709956,1721473484104,-2414.85083,0.00044288,30]
[332709957,1721473484130,-833.33,0.00044383,30]
[332709958,1721473484155,-315.24,0.00044384,120]
[332709959,1721473484180,-573.63,0.00044384,120]
[332709960,1721473484204,-100054.9007806,0.000444,33]
[332709961,1721473484229,-1266.4527035,0.0004445,120]
[332709962,1721473484255,-2414.85083,0.00044488,30]
[332709963,1721473484280,-500.0,0.000445,120]
[332709964,1721473484306,-151.0,0.00044603,120]
[332709965,1721473484334,-1250.0,0.00044657,120]
[332709966,1721473484360,-2414.85083,0.00044688,30]
[332709967,1721473484387,-224.86414564,0.00044698,120]
[332709968,1721473484414,-172.46242421,0.00044698,90]